[Event "Titled Tuesday Blitz July 4 Late 2023"]
[White "Abduzhaparov"]
[Black "Atanasov, Anthony"]
[BlackFideId "2623897"]
[WhiteElo "2353"]
[BlackElo "2602"]
[Result "1-0"]
[Round "1"]
[TimeControl "180+2"]
[Date "2023.07.04"]
[WhiteClock "0:00:13"]
[BlackClock "0:00:10"]
[Board "116"]

1. Nf3 {[%clk 0:03:00]}  d5 {[%clk 0:02:58]} 2. c4 {[%clk 0:03:01]}  d4 {[%clk 0:02:58]} 3. e3 {[%clk 0:03:02]}  c5 {[%clk 0:02:56]} 4. b4 {[%clk 0:03:02]}  dxe3 {[%clk 0:02:53]} 5. fxe3 {[%clk 0:03:03]}  cxb4 {[%clk 0:02:54]} 6. d4 {[%clk 0:03:03]}  g6 {[%clk 0:02:54]} 7. Bd3 {[%clk 0:03:03]}  Nf6 {[%clk 0:02:53]} 8. O-O {[%clk 0:03:02]}  Bg7 {[%clk 0:02:53]} 9. a3 {[%clk 0:03:03]}  bxa3 {[%clk 0:02:53]} 10. Nxa3 {[%clk 0:03:04]}  O-O {[%clk 0:02:53]} 11. Bb2 {[%clk 0:03:00]}  Nc6 {[%clk 0:02:54]} 12. d5 {[%clk 0:02:55]}  Nb4 {[%clk 0:02:41]} 13. Bb1 {[%clk 0:02:51]}  Bf5 {[%clk 0:02:25]} 14. Qb3 {[%clk 0:02:41]}  a5 {[%clk 0:02:21]} 15. Bxf5 {[%clk 0:02:32]}  gxf5 {[%clk 0:02:20]} 16. Nb5 {[%clk 0:02:27]}  e6 {[%clk 0:02:02]} 17. Nfd4 {[%clk 0:02:19]}  exd5 {[%clk 0:01:55]} 18. Nxf5 {[%clk 0:02:18]}  dxc4 {[%clk 0:01:55]} 19. Qxc4 {[%clk 0:02:16]}  Nd3 {[%clk 0:01:11]} 20. Bd4 {[%clk 0:01:54]}  Nb4 {[%clk 0:00:46]} 21. Nxg7 {[%clk 0:01:48]}  Qd5 {[%clk 0:00:46]} 22. Qxd5 {[%clk 0:01:35]}  Nfxd5 {[%clk 0:00:47]} 23. Nf5 {[%clk 0:01:35]}  Ra6 {[%clk 0:00:45]} 24. Rxa5 {[%clk 0:01:27]}  f6 {[%clk 0:00:31]} 25. Rxa6 {[%clk 0:01:17]}  bxa6 {[%clk 0:00:32]} 26. Nc3 {[%clk 0:00:50]}  Nxc3 {[%clk 0:00:25]} 27. Bxc3 {[%clk 0:00:51]}  Nd5 {[%clk 0:00:26]} 28. Bd4 {[%clk 0:00:45]}  Re8 {[%clk 0:00:26]} 29. Ra1 {[%clk 0:00:43]}  Re6 {[%clk 0:00:24]} 30. Ra5 {[%clk 0:00:41]}  Nb4 {[%clk 0:00:12]} 31. Rc5 {[%clk 0:00:35]}  h5 {[%clk 0:00:09]} 32. Rc7 {[%clk 0:00:32]}  a5 {[%clk 0:00:06]} 33. Rg7+ {[%clk 0:00:17]}  Kh8 {[%clk 0:00:04]} 34. Ra7 {[%clk 0:00:15]}  Nc6 {[%clk 0:00:03]} 35. Ra6 {[%clk 0:00:11]}  Kh7 {[%clk 0:00:01]} 36. Bc5 {[%clk 0:00:06]}  h4 {[%clk 0:00:02]} 37. h3 {[%clk 0:00:06]}  Re5 {[%clk 0:00:02]} 38. Rxc6 {[%clk 0:00:04]}  Rxf5 {[%clk 0:00:03]} 39. Bd4 {[%clk 0:00:05]}  Kg6 {[%clk 0:00:03]} 40. Ra6 {[%clk 0:00:05]}  Kh5 {[%clk 0:00:02]} 41. Rxf6 {[%clk 0:00:04]}  Rb5 {[%clk 0:00:03]} 42. Ra6 {[%clk 0:00:04]}  Rd5 {[%clk 0:00:02]} 43. Kh2 {[%clk 0:00:04]}  Rb5 {[%clk 0:00:02]} 44. Rb6 {[%clk 0:00:05]}  Rf5 {[%clk 0:00:02]} 45. Ra6 {[%clk 0:00:05]}  Rb5 {[%clk 0:00:02]} 46. Bc3 {[%clk 0:00:05]}  Rc5 {[%clk 0:00:02]} 47. Rxa5 {[%clk 0:00:05]}  Rg5 {[%clk 0:00:01]} 48. Rxg5+ {[%clk 0:00:05]}  Kxg5 {[%clk 0:00:02]} 49. Be1 {[%clk 0:00:05]}  Kf5 {[%clk 0:00:02]} 50. Bxh4 {[%clk 0:00:05]}  Ke4 {[%clk 0:00:03]} 51. g3 {[%clk 0:00:06]}  Kxe3 {[%clk 0:00:03]} 52. g4 {[%clk 0:00:06]}  Kf4 {[%clk 0:00:04]} 53. Bg3+ {[%clk 0:00:07]}  Kf3 {[%clk 0:00:04]} 54. Kg1 {[%clk 0:00:06]}  Kxg3 {[%clk 0:00:03]} 55. g5 {[%clk 0:00:07]}  Kh4 {[%clk 0:00:03]} 56. g6 {[%clk 0:00:08]}  Kh5 {[%clk 0:00:04]} 57. g7 {[%clk 0:00:09]}  Kh6 {[%clk 0:00:04]} 58. g8=Q {[%clk 0:00:09]}  Kh5 {[%clk 0:00:05]} 59. Qg4+ {[%clk 0:00:09]}  Kh6 {[%clk 0:00:06]} 60. Kf2 {[%clk 0:00:10]}  Kh7 {[%clk 0:00:07]} 61. Kf3 {[%clk 0:00:11]}  Kh8 {[%clk 0:00:08]} 62. Kf4 {[%clk 0:00:12]}  Kh7 {[%clk 0:00:09]} 63. Kf5 {[%clk 0:00:12]}  Kh8 {[%clk 0:00:09]} 64. Kf6 {[%clk 0:00:13]}  Kh7 {[%clk 0:00:10]} 65. Qg7# {[%clk 0:00:13]} 1-0


[Site "https://www.chess.com"]

[Event "Titled Tuesday Blitz July 4 Late 2023"]
[White "Pinheiro, Iung Alicio de O."]
[Black "Eggleston, Thomas A"]
[WhiteFideId "2104350"]
[BlackFideId "412139"]
[WhiteElo "2599"]
[BlackElo "2352"]
[Result "1-0"]
[Round "1"]
[TimeControl "180+2"]
[Date "2023.07.04"]
[WhiteClock "0:00:10"]
[BlackClock "0:00:00"]
[Board "117"]

1. e4 {[%clk 0:02:57]}  e6 {[%clk 0:02:59]} 2. d4 {[%clk 0:02:56]}  d5 {[%clk 0:02:59]} 3. e5 {[%clk 0:02:55]}  c5 {[%clk 0:02:57]} 4. c3 {[%clk 0:02:56]}  Nc6 {[%clk 0:02:57]} 5. Nf3 {[%clk 0:02:56]}  Qb6 {[%clk 0:02:57]} 6. Bd3 {[%clk 0:02:54]}  Nh6 {[%clk 0:02:55]} 7. O-O {[%clk 0:02:53]}  cxd4 {[%clk 0:02:50]} 8. h3 {[%clk 0:02:52]}  Nf5 {[%clk 0:02:21]} 9. Re1 {[%clk 0:02:37]}  Be7 {[%clk 0:02:18]} 10. Nbd2 {[%clk 0:02:17]}  dxc3 {[%clk 0:02:06]} 11. bxc3 {[%clk 0:02:16]}  Bd7 {[%clk 0:02:06]} 12. Rb1 {[%clk 0:02:08]}  Qc7 {[%clk 0:02:00]} 13. c4 {[%clk 0:02:06]}  dxc4 {[%clk 0:01:55]} 14. Nxc4 {[%clk 0:02:04]}  O-O {[%clk 0:01:52]} 15. g4 {[%clk 0:01:28]}  Nh4 {[%clk 0:01:45]} 16. Nxh4 {[%clk 0:01:24]}  Bxh4 {[%clk 0:01:45]} 17. g5 {[%clk 0:01:25]}  Nd4 {[%clk 0:01:25]} 18. Qg4 {[%clk 0:01:17]}  Nf5 {[%clk 0:01:13]} 19. Bxf5 {[%clk 0:01:09]}  exf5 {[%clk 0:01:13]} 20. Qxh4 {[%clk 0:01:09]}  Bc6 {[%clk 0:00:53]} 21. Nd6 {[%clk 0:00:59]}  g6 {[%clk 0:00:45]} 22. Qd4 {[%clk 0:00:49]}  Rad8 {[%clk 0:00:43]} 23. Bb2 {[%clk 0:00:47]}  Qe7 {[%clk 0:00:29]} 24. h4 {[%clk 0:00:29]}  Be4 {[%clk 0:00:28]} 25. e6 {[%clk 0:00:27]}  f6 {[%clk 0:00:26]} 26. gxf6 {[%clk 0:00:23]}  Rxf6 {[%clk 0:00:15]} 27. Qxf6 {[%clk 0:00:21]}  Qxf6 {[%clk 0:00:16]} 28. Bxf6 {[%clk 0:00:21]}  Rxd6 {[%clk 0:00:16]} 29. e7 {[%clk 0:00:19]}  Kf7 {[%clk 0:00:16]} 30. Bg5 {[%clk 0:00:15]}  h6 {[%clk 0:00:15]} 31. Bf4 {[%clk 0:00:14]}  Re6 {[%clk 0:00:14]} 32. Rxb7 {[%clk 0:00:11]}  g5 {[%clk 0:00:13]} 33. hxg5 {[%clk 0:00:11]}  hxg5 {[%clk 0:00:13]} 34. Bh2 {[%clk 0:00:10]}  f4 {[%clk 0:00:12]} 35. Rxa7 {[%clk 0:00:11]}  f3 {[%clk 0:00:00]} 36. Bg3 {[%clk 0:00:10]} 1-0


[Site "https://www.chess.com"]

[Event "Titled Tuesday Blitz July 4 Late 2023"]
[White "Alahakoon, Isuru"]
[Black "Sargsyan, Anna M."]
[WhiteFideId "9900993"]
[BlackFideId "13308130"]
[WhiteElo "2343"]
[BlackElo "2595"]
[Result "0-1"]
[Round "1"]
[TimeControl "180+2"]
[Date "2023.07.04"]
[WhiteClock "0:01:58"]
[BlackClock "0:02:06"]
[Board "120"]

1. Nf3 {[%clk 0:02:51]}  d5 {[%clk 0:02:59]} 2. e3 {[%clk 0:02:51]}  Nf6 {[%clk 0:02:59]} 3. c4 {[%clk 0:02:52]}  c6 {[%clk 0:02:59]} 4. d4 {[%clk 0:02:51]}  e6 {[%clk 0:02:59]} 5. Nbd2 {[%clk 0:02:51]}  c5 {[%clk 0:02:58]} 6. cxd5 {[%clk 0:02:49]}  exd5 {[%clk 0:02:59]} 7. dxc5 {[%clk 0:02:49]}  Bxc5 {[%clk 0:03:00]} 8. Bd3 {[%clk 0:02:48]}  O-O {[%clk 0:03:00]} 9. O-O {[%clk 0:02:48]}  Nc6 {[%clk 0:03:00]} 10. b3 {[%clk 0:02:48]}  Bg4 {[%clk 0:02:59]} 11. Bb2 {[%clk 0:02:48]}  Re8 {[%clk 0:03:00]} 12. Rc1 {[%clk 0:02:46]}  Bb6 {[%clk 0:03:00]} 13. Qc2 {[%clk 0:02:42]}  Rc8 {[%clk 0:02:54]} 14. Bxf6 {[%clk 0:02:39]}  Qxf6 {[%clk 0:02:55]} 15. Bxh7+ {[%clk 0:02:39]}  Kh8 {[%clk 0:02:55]} 16. h3 {[%clk 0:02:21]}  Bxf3 {[%clk 0:02:50]} 17. Nxf3 {[%clk 0:02:22]}  g6 {[%clk 0:02:50]} 18. Bxg6 {[%clk 0:02:17]}  fxg6 {[%clk 0:02:48]} 19. Qd3 {[%clk 0:02:14]}  Rcd8 {[%clk 0:02:43]} 20. Rfd1 {[%clk 0:02:10]}  Kg7 {[%clk 0:02:43]} 21. Qb5 {[%clk 0:02:08]}  Qf5 {[%clk 0:02:23]} 22. a4 {[%clk 0:02:05]}  d4 {[%clk 0:02:07]} 23. a5 {[%clk 0:01:58]}  Qxb5 {[%clk 0:02:06]} 0-1


[Site "https://www.chess.com"]

[Event "Titled Tuesday Blitz July 4 Late 2023"]
[White "Sebag, Marie"]
[Black "Shapiro, Daniel"]
[WhiteFideId "617822"]
[BlackFideId "2001780"]
[WhiteElo "2579"]
[BlackElo "2324"]
[Result "0-1"]
[Round "1"]
[TimeControl "180+2"]
[Date "2023.07.04"]
[WhiteClock "0:00:07"]
[BlackClock "0:00:33"]
[Board "127"]

1. d4 {[%clk 0:02:59]}  Nf6 {[%clk 0:02:59]} 2. Nc3 {[%clk 0:02:56]}  d5 {[%clk 0:02:57]} 3. Bf4 {[%clk 0:02:55]}  a6 {[%clk 0:02:57]} 4. Qd2 {[%clk 0:02:54]}  e6 {[%clk 0:02:57]} 5. e3 {[%clk 0:02:53]}  Bd6 {[%clk 0:02:57]} 6. Nf3 {[%clk 0:02:49]}  c5 {[%clk 0:02:53]} 7. O-O-O {[%clk 0:02:39]}  Nc6 {[%clk 0:02:48]} 8. g4 {[%clk 0:02:35]}  h6 {[%clk 0:02:38]} 9. g5 {[%clk 0:02:33]}  hxg5 {[%clk 0:02:36]} 10. Bxg5 {[%clk 0:02:33]}  b5 {[%clk 0:02:36]} 11. dxc5 {[%clk 0:02:27]}  Bxc5 {[%clk 0:02:34]} 12. Kb1 {[%clk 0:02:23]}  Qa5 {[%clk 0:02:03]} 13. Bxf6 {[%clk 0:02:02]}  gxf6 {[%clk 0:02:04]} 14. Ne4 {[%clk 0:01:52]}  Qxd2 {[%clk 0:01:44]} 15. Nexd2 {[%clk 0:01:51]}  Bb7 {[%clk 0:01:37]} 16. Nb3 {[%clk 0:01:48]}  Bb6 {[%clk 0:01:29]} 17. h4 {[%clk 0:01:46]}  Ke7 {[%clk 0:01:29]} 18. h5 {[%clk 0:01:45]}  Rag8 {[%clk 0:01:26]} 19. Bd3 {[%clk 0:01:38]}  Ne5 {[%clk 0:01:22]} 20. Nfd4 {[%clk 0:01:17]}  Nxd3 {[%clk 0:01:18]} 21. cxd3 {[%clk 0:01:15]}  Rg5 {[%clk 0:01:19]} 22. h6 {[%clk 0:01:07]}  Rg6 {[%clk 0:01:19]} 23. h7 {[%clk 0:01:04]}  Rg7 {[%clk 0:01:19]} 24. f4 {[%clk 0:01:01]}  Rhxh7 {[%clk 0:01:17]} 25. Rhe1 {[%clk 0:01:00]}  Rh2 {[%clk 0:01:15]} 26. Nf3 {[%clk 0:00:47]}  Rf2 {[%clk 0:01:10]} 27. Nfd2 {[%clk 0:00:30]}  Rg3 {[%clk 0:01:01]} 28. d4 {[%clk 0:00:29]}  Rgg2 {[%clk 0:00:55]} 29. a3 {[%clk 0:00:28]}  a5 {[%clk 0:00:55]} 30. Rf1 {[%clk 0:00:20]}  Re2 {[%clk 0:00:53]} 31. Rg1 {[%clk 0:00:13]}  Rxg1 {[%clk 0:00:50]} 32. Rxg1 {[%clk 0:00:13]}  a4 {[%clk 0:00:50]} 33. Kc2 {[%clk 0:00:13]}  axb3+ {[%clk 0:00:50]} 34. Kd3 {[%clk 0:00:13]}  Rh2 {[%clk 0:00:44]} 35. Rb1 {[%clk 0:00:13]}  b4 {[%clk 0:00:40]} 36. axb4 {[%clk 0:00:12]}  Ba6+ {[%clk 0:00:40]} 37. Kc3 {[%clk 0:00:13]}  Re2 {[%clk 0:00:36]} 38. Nf1 {[%clk 0:00:08]}  Bc4 {[%clk 0:00:33]} 39. Ra1 {[%clk 0:00:07]}  Rc2# {[%clk 0:00:33]} 0-1


[Site "https://www.chess.com"]

[Event "Titled Tuesday Blitz July 4 Late 2023"]
[White "Czerw, Dawid"]
[Black "Rodriguez Santiago, Jaime"]
[WhiteFideId "1145746"]
[BlackFideId "3100898"]
[WhiteElo "2576"]
[BlackElo "2319"]
[Result "1-0"]
[Round "1"]
[TimeControl "180+2"]
[Date "2023.07.04"]
[WhiteClock "0:00:43"]
[BlackClock "0:01:02"]
[Board "129"]

1. e4 {[%clk 0:03:00]}  c6 {[%clk 0:02:59]} 2. Nc3 {[%clk 0:03:00]}  d5 {[%clk 0:02:58]} 3. Qf3 {[%clk 0:03:00]}  dxe4 {[%clk 0:02:56]} 4. Nxe4 {[%clk 0:03:01]}  Nf6 {[%clk 0:02:55]} 5. Bc4 {[%clk 0:03:01]}  Qd4 {[%clk 0:02:43]} 6. d3 {[%clk 0:02:52]}  Nbd7 {[%clk 0:02:17]} 7. Ne2 {[%clk 0:02:48]}  Qb6 {[%clk 0:02:12]} 8. O-O {[%clk 0:02:31]}  Ne5 {[%clk 0:02:08]} 9. Nxf6+ {[%clk 0:02:18]}  exf6 {[%clk 0:02:07]} 10. Qg3 {[%clk 0:02:18]}  Nxc4 {[%clk 0:02:04]} 11. dxc4 {[%clk 0:02:18]}  Be6 {[%clk 0:02:02]} 12. Nf4 {[%clk 0:02:14]}  O-O-O {[%clk 0:01:54]} 13. b3 {[%clk 0:02:09]}  Bf5 {[%clk 0:01:49]} 14. Be3 {[%clk 0:02:03]}  Qc7 {[%clk 0:01:46]} 15. a4 {[%clk 0:01:49]}  a5 {[%clk 0:01:44]} 16. f3 {[%clk 0:01:42]}  Bd6 {[%clk 0:01:37]} 17. Rad1 {[%clk 0:01:03]}  g5 {[%clk 0:01:21]} 18. Rxd6 {[%clk 0:01:02]}  Qxd6 {[%clk 0:01:20]} 19. Nh5 {[%clk 0:01:02]}  Qxg3 {[%clk 0:01:20]} 20. Nxg3 {[%clk 0:01:03]}  Bxc2 {[%clk 0:01:19]} 21. Bb6 {[%clk 0:01:03]}  Rd2 {[%clk 0:01:15]} 22. Bxa5 {[%clk 0:01:02]}  Bxb3 {[%clk 0:01:15]} 23. Bxd2 {[%clk 0:01:01]}  Bxc4 {[%clk 0:01:11]} 24. Re1 {[%clk 0:00:58]}  Rd8 {[%clk 0:01:09]} 25. Bc3 {[%clk 0:00:58]}  Rd6 {[%clk 0:01:08]} 26. Ne4 {[%clk 0:00:55]}  Re6 {[%clk 0:01:07]} 27. Kf2 {[%clk 0:00:46]}  h6 {[%clk 0:01:02]} 28. Nxf6 {[%clk 0:00:43]} 1-0


[Site "https://www.chess.com"]

[Event "Titled Tuesday Blitz July 4 Late 2023"]
[White "el_sporco"]
[Black "Garcia, Erick"]
[BlackFideId "2058880"]
[WhiteElo "2317"]
[BlackElo "2575"]
[Result "1-0"]
[Round "1"]
[TimeControl "180+2"]
[Date "2023.07.04"]
[WhiteClock "0:00:05"]
[BlackClock "0:00:05"]
[Board "130"]

1. e4 {[%clk 0:02:57]}  e5 {[%clk 0:02:59]} 2. Nf3 {[%clk 0:02:50]}  Nc6 {[%clk 0:02:59]} 3. Bb5 {[%clk 0:02:49]}  a6 {[%clk 0:02:59]} 4. Ba4 {[%clk 0:02:49]}  Nf6 {[%clk 0:02:59]} 5. O-O {[%clk 0:02:48]}  Be7 {[%clk 0:02:59]} 6. Re1 {[%clk 0:02:48]}  b5 {[%clk 0:02:59]} 7. Bb3 {[%clk 0:02:48]}  O-O {[%clk 0:03:00]} 8. d4 {[%clk 0:02:48]}  d6 {[%clk 0:02:58]} 9. c3 {[%clk 0:02:48]}  Bg4 {[%clk 0:02:54]} 10. d5 {[%clk 0:02:46]}  Na5 {[%clk 0:02:53]} 11. Bc2 {[%clk 0:02:46]}  c6 {[%clk 0:02:53]} 12. dxc6 {[%clk 0:02:45]}  Qc7 {[%clk 0:02:49]} 13. h3 {[%clk 0:02:45]}  Bh5 {[%clk 0:02:48]} 14. Nbd2 {[%clk 0:02:41]}  Qxc6 {[%clk 0:02:42]} 15. g4 {[%clk 0:02:29]}  Bg6 {[%clk 0:02:41]} 16. Qe2 {[%clk 0:02:29]}  Rfe8 {[%clk 0:02:38]} 17. Nf1 {[%clk 0:02:28]}  Nb7 {[%clk 0:02:34]} 18. Ng3 {[%clk 0:02:24]}  Bf8 {[%clk 0:02:28]} 19. Nh4 {[%clk 0:02:20]}  Nc5 {[%clk 0:02:25]} 20. Nhf5 {[%clk 0:02:09]}  Rad8 {[%clk 0:02:19]} 21. Bg5 {[%clk 0:02:05]}  Ne6 {[%clk 0:02:08]} 22. Bxf6 {[%clk 0:02:03]}  gxf6 {[%clk 0:02:09]} 23. Bb3 {[%clk 0:01:49]}  Nf4 {[%clk 0:02:07]} 24. Qf1 {[%clk 0:01:46]}  Kh8 {[%clk 0:01:56]} 25. Rad1 {[%clk 0:01:34]}  a5 {[%clk 0:01:52]} 26. a3 {[%clk 0:01:25]}  h5 {[%clk 0:01:40]} 27. Bd5 {[%clk 0:01:16]}  Qd7 {[%clk 0:01:30]} 28. Ne2 {[%clk 0:01:11]}  Nxd5 {[%clk 0:01:12]} 29. Rxd5 {[%clk 0:01:08]}  Bxf5 {[%clk 0:01:05]} 30. exf5 {[%clk 0:00:39]}  Bh6 {[%clk 0:00:54]} 31. Ng3 {[%clk 0:00:37]}  hxg4 {[%clk 0:00:52]} 32. hxg4 {[%clk 0:00:37]}  Bg5 {[%clk 0:00:50]} 33. Qxb5 {[%clk 0:00:32]}  Qc7 {[%clk 0:00:44]} 34. Kg2 {[%clk 0:00:29]}  Rb8 {[%clk 0:00:39]} 35. Qe2 {[%clk 0:00:26]}  Kg7 {[%clk 0:00:30]} 36. Red1 {[%clk 0:00:25]}  Red8 {[%clk 0:00:27]} 37. Ne4 {[%clk 0:00:25]}  Bf4 {[%clk 0:00:25]} 38. Qc2 {[%clk 0:00:22]}  Rh8 {[%clk 0:00:22]} 39. Rh1 {[%clk 0:00:19]}  Rxh1 {[%clk 0:00:22]} 40. Kxh1 {[%clk 0:00:20]}  Rh8+ {[%clk 0:00:21]} 41. Kg1 {[%clk 0:00:21]}  Qc4 {[%clk 0:00:20]} 42. Qd3 {[%clk 0:00:20]}  Qa2 {[%clk 0:00:20]} 43. b4 {[%clk 0:00:18]}  Qxa3 {[%clk 0:00:17]} 44. b5 {[%clk 0:00:18]}  Qc1+ {[%clk 0:00:17]} 45. Qd1 {[%clk 0:00:18]}  Qb2 {[%clk 0:00:15]} 46. Qd3 {[%clk 0:00:18]}  Rh2 {[%clk 0:00:13]} 47. Rxd6 {[%clk 0:00:16]}  a4 {[%clk 0:00:11]} 48. Rxf6 {[%clk 0:00:14]}  Rxf2 {[%clk 0:00:10]} 49. Rxf7+ {[%clk 0:00:14]}  Kxf7 {[%clk 0:00:10]} 50. Qd7+ {[%clk 0:00:14]}  Kg8 {[%clk 0:00:10]} 51. Qe6+ {[%clk 0:00:15]}  Kf8 {[%clk 0:00:10]} 52. Qf6+ {[%clk 0:00:15]}  Ke8 {[%clk 0:00:10]} 53. Qe6+ {[%clk 0:00:15]}  Kd8 {[%clk 0:00:11]} 54. Qd6+ {[%clk 0:00:15]}  Ke8 {[%clk 0:00:11]} 55. Qc6+ {[%clk 0:00:15]}  Kf7 {[%clk 0:00:11]} 56. Nxf2 {[%clk 0:00:15]}  Qa3 {[%clk 0:00:09]} 57. b6 {[%clk 0:00:15]}  Qc1+ {[%clk 0:00:07]} 58. Kg2 {[%clk 0:00:14]}  Qe3 {[%clk 0:00:06]} 59. Qe6+ {[%clk 0:00:11]}  Kg7 {[%clk 0:00:06]} 60. Qg6+ {[%clk 0:00:11]}  Kf8 {[%clk 0:00:06]} 61. Qd6+ {[%clk 0:00:11]}  Kg7 {[%clk 0:00:06]} 62. Qc7+ {[%clk 0:00:10]}  Kf6 {[%clk 0:00:06]} 63. Qc6+ {[%clk 0:00:10]}  Kg5 {[%clk 0:00:06]} 64. Ne4+ {[%clk 0:00:07]}  Kxg4 {[%clk 0:00:06]} 65. Qg6+ {[%clk 0:00:07]}  Bg5 {[%clk 0:00:06]} 66. Qxg5+ {[%clk 0:00:03]}  Qxg5 {[%clk 0:00:06]} 67. Nxg5 {[%clk 0:00:04]}  a3 {[%clk 0:00:07]} 68. b7 {[%clk 0:00:04]}  a2 {[%clk 0:00:07]} 69. b8=Q {[%clk 0:00:05]}  a1=Q {[%clk 0:00:08]} 70. Ne4 {[%clk 0:00:03]}  Qa2+ {[%clk 0:00:06]} 71. Nf2+ {[%clk 0:00:02]}  Kxf5 {[%clk 0:00:07]} 72. Qf8+ {[%clk 0:00:02]}  Kg6 {[%clk 0:00:05]} 73. Qe8+ {[%clk 0:00:02]}  Kf6 {[%clk 0:00:06]} 74. Qd8+ {[%clk 0:00:02]}  Kg6 {[%clk 0:00:06]} 75. Qd3+ {[%clk 0:00:02]}  Kf6 {[%clk 0:00:06]} 76. Qe3 {[%clk 0:00:03]}  Qc2 {[%clk 0:00:05]} 77. Kf3 {[%clk 0:00:04]}  Kf5 {[%clk 0:00:04]} 78. Qe4+ {[%clk 0:00:03]}  Qxe4+ {[%clk 0:00:04]} 79. Nxe4 {[%clk 0:00:04]}  Ke6 {[%clk 0:00:05]} 80. Ke3 {[%clk 0:00:05]}  Kd5 {[%clk 0:00:05]} 81. Kd3 {[%clk 0:00:06]}  Kc6 {[%clk 0:00:05]} 82. Nd2 {[%clk 0:00:06]}  Kd5 {[%clk 0:00:06]} 83. Ke3 {[%clk 0:00:07]}  Ke6 {[%clk 0:00:05]} 84. Ke4 {[%clk 0:00:07]}  Kd6 {[%clk 0:00:06]} 85. c4 {[%clk 0:00:05]}  Kc5 {[%clk 0:00:07]} 86. Kxe5 {[%clk 0:00:05]}  Kb4 {[%clk 0:00:05]} 87. Kd4 {[%clk 0:00:05]} 1-0


[Site "https://www.chess.com"]

[Event "Titled Tuesday Blitz July 4 Late 2023"]
[White "Sowa, Ryan"]
[Black "Lach, Aleksandra"]
[WhiteFideId "30901693"]
[BlackFideId "1134299"]
[WhiteElo "2574"]
[BlackElo "2314"]
[Result "1-0"]
[Round "1"]
[TimeControl "180+2"]
[Date "2023.07.04"]
[WhiteClock "0:00:58"]
[BlackClock "0:00:15"]
[Board "131"]

1. Nf3 {[%clk 0:03:00]}  c5 {[%clk 0:02:52]} 2. b3 {[%clk 0:02:59]}  d6 {[%clk 0:02:46]} 3. Bb2 {[%clk 0:02:59]}  e5 {[%clk 0:02:47]} 4. e3 {[%clk 0:02:53]}  Nf6 {[%clk 0:02:42]} 5. d4 {[%clk 0:02:49]}  cxd4 {[%clk 0:02:42]} 6. exd4 {[%clk 0:02:50]}  e4 {[%clk 0:02:42]} 7. Nfd2 {[%clk 0:02:51]}  d5 {[%clk 0:02:42]} 8. c4 {[%clk 0:02:51]}  Be6 {[%clk 0:02:37]} 9. Nc3 {[%clk 0:02:50]}  Bb4 {[%clk 0:02:25]} 10. Be2 {[%clk 0:02:41]}  O-O {[%clk 0:02:24]} 11. O-O {[%clk 0:02:40]}  Bxc3 {[%clk 0:02:23]} 12. Bxc3 {[%clk 0:02:40]}  Nc6 {[%clk 0:02:23]} 13. c5 {[%clk 0:02:33]}  Bf5 {[%clk 0:02:20]} 14. Re1 {[%clk 0:02:32]}  Re8 {[%clk 0:02:18]} 15. Nf1 {[%clk 0:02:32]}  Bg6 {[%clk 0:02:10]} 16. b4 {[%clk 0:02:27]}  a6 {[%clk 0:02:06]} 17. a4 {[%clk 0:02:27]}  Ne7 {[%clk 0:02:00]} 18. Ne3 {[%clk 0:02:20]}  Nf5 {[%clk 0:01:56]} 19. Qd2 {[%clk 0:02:04]}  Nh4 {[%clk 0:01:45]} 20. b5 {[%clk 0:02:01]}  axb5 {[%clk 0:01:43]} 21. axb5 {[%clk 0:02:02]}  Rxa1 {[%clk 0:01:43]} 22. Rxa1 {[%clk 0:02:02]}  Nh5 {[%clk 0:01:41]} 23. Qa2 {[%clk 0:01:52]}  Nf4 {[%clk 0:01:30]} 24. Bf1 {[%clk 0:01:53]}  Qg5 {[%clk 0:01:28]} 25. Kh1 {[%clk 0:01:53]}  Nd3 {[%clk 0:01:25]} 26. Bxd3 {[%clk 0:01:45]}  exd3 {[%clk 0:01:24]} 27. Qxd5 {[%clk 0:01:41]}  Qxd5 {[%clk 0:01:14]} 28. Nxd5 {[%clk 0:01:41]}  Be4 {[%clk 0:01:15]} 29. Ne3 {[%clk 0:01:36]}  f5 {[%clk 0:01:10]} 30. f3 {[%clk 0:01:20]}  Bxf3 {[%clk 0:01:06]} 31. gxf3 {[%clk 0:01:21]}  Rxe3 {[%clk 0:01:06]} 32. c6 {[%clk 0:01:22]}  bxc6 {[%clk 0:00:55]} 33. bxc6 {[%clk 0:01:23]}  Re8 {[%clk 0:00:49]} 34. d5 {[%clk 0:01:21]}  Nxf3 {[%clk 0:00:46]} 35. c7 {[%clk 0:01:17]}  Kf7 {[%clk 0:00:42]} 36. Rb1 {[%clk 0:01:13]}  Re2 {[%clk 0:00:39]} 37. Be5 {[%clk 0:01:09]}  d2 {[%clk 0:00:34]} 38. c8=Q {[%clk 0:01:07]}  Re1+ {[%clk 0:00:32]} 39. Kg2 {[%clk 0:01:07]}  Rxb1 {[%clk 0:00:30]} 40. Qxf5+ {[%clk 0:01:05]}  Ke8 {[%clk 0:00:27]} 41. Qxb1 {[%clk 0:01:04]}  Nxe5 {[%clk 0:00:15]} 42. Kf2 {[%clk 0:00:58]} 1-0


[Site "https://www.chess.com"]